bitfinex-derivatives/quotes_BTCF0:USTF0_20240820
["timestamp","ask_amount","ask_price","bid_price","bid_amount"]
[1724115094841,0.578,60338.0,60337.0,0.002]
[1724115095134,0.2172,60338.0,60337.0,0.002]
[1724115095534,0.2172,60338.0,60337.0,0.001]
[1724115095535,0.2162,60338.0,60337.0,0.001]
[1724115095838,0.2172,60338.0,60337.0,0.002]
[1724115096139,1.1144,60338.0,60332.0,0.082845]
[1724115096338,1.1144,60338.0,60333.0,0.082844]
[1724115096339,0.3608,60335.0,60333.0,0.082844]
[1724115098135,0.2182,60338.0,60336.0,0.08284]
[1724115098529,0.2172,60338.0,60336.0,0.08284]
[1724115099329,0.2162,60338.0,60336.0,0.08284]
[1724115099928,0.2182,60338.0,60336.0,0.08384]
[1724115100134,0.2182,60338.0,60337.0,0.3608]
[1724115100533,0.2202,60338.0,60337.0,0.3608]
[1724115101242,0.2182,60338.0,60337.0,0.3608]
[1724115101442,0.2202,60338.0,60337.0,0.3618]
[1724115102036,0.2182,60338.0,60337.0,0.3618]
[1724115102242,0.2202,60338.0,60337.0,0.001]
[1724115102740,0.2202,60338.0,60337.0,0.002]
[1724115103833,0.2192,60338.0,60337.0,0.002]
[1724115104534,0.2192,60338.0,60337.0,0.001]
[1724115104535,0.002,60338.0,60337.0,0.001]
[1724115104731,0.003,60338.0,60337.0,0.13328535]
[1724115104937,0.00016019,60340.0,60339.0,0.082836]
[1724115105140,0.2167,60354.0,60339.0,0.3608]
[1724115105340,0.2003,60354.0,60345.0,0.04812391]
[1724115105539,0.2003,60354.0,60346.0,0.04812391]
[1724115106041,0.21172281,60354.0,60345.0,0.04812391]
[1724115106231,0.21172281,60354.0,60344.0,0.59188]
[1724115106436,0.21172281,60354.0,60344.0,0.5904]
[1724115106835,0.21172281,60354.0,60350.0,0.3608]
[1724115107037,0.21172281,60354.0,60352.0,0.082817]
[1724115109245,0.2003,60354.0,60352.0,0.082817]
[1724115109443,0.04054711,60356.0,60353.0,0.2296]
[1724115109644,0.04054711,60362.0,60356.0,0.082812]
[1724115109946,0.01191006,60360.0,60356.0,0.082812]
[1724115110441,0.05082305,60365.0,60353.0,0.2296]
[1724115110442,0.13208739,60369.0,60355.0,0.3608]
[1724115110644,0.49288739,60371.0,60370.0,0.082793]
[1724115110945,0.05208757,60371.0,60370.0,0.082793]
[1724115111146,0.01154795,60371.0,60370.0,0.082793]
[1724115111445,0.2053,60373.0,60371.0,0.082792]
[1724115111745,0.21683861,60373.0,60370.0,0.202]
[1724115111937,0.579711,60372.0,60370.0,0.001]
[1724115112140,0.3608,60371.0,60370.0,0.001]
[1724115112334,0.89826145,60371.0,60370.0,0.001]
[1724115112537,1.29826145,60371.0,60370.0,0.001]
[1724115113147,1.25772,60371.0,60370.0,0.001]
[1724115113446,1.25772,60371.0,60356.0,0.0002485]
[1724115113447,0.082801,60365.0,60356.0,0.0002485]
[1724115113743,0.3608,60361.0,60356.0,0.0002485]
[1724115114242,0.2211,60360.0,60356.0,0.0002485]
[1724115114448,0.3608,60361.0,60356.0,0.0002485]
[1724115114649,4.069702,60364.0,60356.0,0.0830605]
[1724115114947,4.069702,60364.0,60361.0,0.082805]
[1724115114948,3.77,60364.0,60361.0,0.082805]
[1724115115149,3.77,60364.0,60362.0,0.301203]
[1724115115745,0.082806,60361.0,60356.0,0.0012485]
[1724115115940,0.44361,60358.0,60356.0,0.0012485]
[1724115116136,0.224,60357.0,60356.0,0.0022485]
[1724115116341,0.72104,60357.0,60356.0,0.0022485]
[1724115116546,0.72104,60357.0,60356.0,0.0012485]
[1724115116756,1.12104,60357.0,60356.0,0.001]
[1724115117243,1.48184,60357.0,60356.0,0.001]
[1724115117444,0.082812,60356.0,60348.0,0.2145]
[1724115117646,0.3608,60352.0,60348.0,0.2145]
[1724115117847,0.082812,60356.0,60348.0,0.2145]
[1724115118353,0.3608,60352.0,60348.0,0.2145]
[1724115118555,0.082819,60351.0,60346.0,0.0002485]
[1724115118852,0.3608,60347.0,60346.0,0.0002485]
[1724115119751,1.25792,60347.0,60346.0,0.0012485]
[1724115120146,1.47452,60347.0,60336.0,0.08284]
[1724115120341,0.5774,60347.0,60346.0,0.001]
[1724115120547,0.5794,60347.0,60346.0,0.001]
[1724115120748,1.48908269,60347.0,60346.0,0.002]
[1724115120946,0.003,60347.0,60346.0,0.002]
[1724115122051,0.002,60347.0,60346.0,0.001]
[1724115122253,0.86092,60347.0,60346.0,0.002]
[1724115122456,1.04970986,60347.0,60346.0,0.002]
[1724115122644,0.62595168,60347.0,60346.0,0.002]
[1724115122844,4.39795168,60347.0,60346.0,0.002]
[1724115123253,4.39595568,60347.0,60346.0,0.001]
[1724115123448,4.39595568,60347.0,60346.0,0.002]
[1724115123449,4.03715568,60347.0,60346.0,0.002]
[1724115123847,4.03715568,60347.0,60344.0,0.082828]
[1724115123848,4.03415568,60347.0,60344.0,0.082828]
[1724115124153,0.13193744,60345.0,60344.0,0.082828]
[1724115124454,0.09139072,60346.0,60340.0,0.0002485]
[1724115124651,0.13194379,60342.0,60340.0,0.0002485]
[1724115124956,0.13194379,60345.0,60343.0,0.082829]
[1724115125152,0.04055568,60346.0,60345.0,0.082827]
[1724115125351,0.003,60347.0,60345.0,0.082827]
[1724115125561,0.002,60347.0,60345.0,0.082827]
[1724115125855,0.001,60346.0,60345.0,0.082827]
[1724115126947,0.001,60346.0,60345.0,0.083827]
[1724115127742,0.003,60347.0,60345.0,0.084827]
[1724115128548,0.002,60346.0,60345.0,0.001]
[1724115128851,0.003,60346.0,60345.0,0.002]
[1724115129053,0.001,60346.0,60345.0,0.001]
[1724115129246,3.771,60346.0,60345.0,0.002]
[1724115129446,3.77,60346.0,60345.0,0.002]
[1724115129647,3.77,60346.0,60345.0,0.001]
[1724115129854,3.772,60346.0,60345.0,0.002]
[1724115130255,3.77,60346.0,60345.0,0.001]
[1724115130453,3.77,60346.0,60334.0,0.4405]
[1724115130454,0.082833,60341.0,60334.0,0.4405]
[1724115130649,0.2144,60340.0,60334.0,0.4405]
[1724115131745,0.2144,60340.0,60336.0,0.08284]
[1724115131951,0.2164,60340.0,60337.0,0.082838]
[1724115132155,0.2184,60340.0,60337.0,0.082838]
[1724115132551,0.004,60340.0,60337.0,0.082838]
[1724115133262,0.004,60340.0,60337.0,0.083838]
[1724115133447,0.004,60340.0,60337.0,0.001]
[1724115133757,0.004,60340.0,60338.0,0.082836]
[1724115134553,0.004,60340.0,60339.0,0.082836]
[1724115135847,0.004,60340.0,60339.0,0.296336]
[1724115136053,0.0002485,60343.0,60342.0,0.082832]
[1724115138362,0.0002485,60343.0,60342.0,0.083832]
[1724115138363,0.0022485,60343.0,60342.0,0.083832]
[1724115140062,0.0042485,60343.0,60342.0,0.083832]
[1724115141063,0.0022485,60343.0,60342.0,0.083832]
[1724115141258,0.0042485,60343.0,60342.0,0.083832]
[1724115142560,0.0022485,60343.0,60342.0,0.082832]
[1724115142756,0.0042485,60343.0,60342.0,0.083832]
[1724115142969,0.0022485,60343.0,60342.0,0.083832]
[1724115143172,0.5919,60357.0,60356.0,0.082812]
[1724115143560,0.60321008,60357.0,60356.0,0.082812]
[1724115143962,0.24241008,60357.0,60356.0,0.082812]
[1724115144157,1.28945008,60357.0,60352.0,0.00148]
[1724115144461,1.28945008,60357.0,60350.0,0.0002485]
[1724115144462,0.3608,60353.0,60350.0,0.0002485]
[1724115145163,0.443617,60353.0,60350.0,0.0002485]
[1724115145672,0.3608,60351.0,60338.0,0.40892391]
[1724115145859,0.3608,60351.0,60341.0,0.2119]
[1724115146064,0.001,60353.0,60350.0,0.001]
[1724115146460,0.003,60353.0,60350.0,0.001]
[1724115147167,0.001,60353.0,60350.0,0.001]
[1724115147366,0.003,60353.0,60352.0,0.082818]
[1724115148874,0.004,60353.0,60352.0,0.082818]
[1724115149365,0.002,60353.0,60352.0,0.082818]
[1724115149566,0.004,60353.0,60352.0,0.083818]
[1724115149964,0.002,60353.0,60352.0,0.082818]
[1724115150169,0.004,60353.0,60352.0,0.083818]
[1724115150572,0.002,60353.0,60352.0,0.083818]
[1724115150774,0.004,60353.0,60352.0,0.083818]
[1724115151571,0.04454688,60353.0,60352.0,0.083818]
[1724115152669,0.004,60353.0,60352.0,0.001]
[1724115153268,3.774,60353.0,60352.0,0.001]
[1724115153476,3.81454688,60353.0,60352.0,0.001]
[1724115153880,3.81254688,60353.0,60352.0,0.001]
[1724115154074,3.81454688,60353.0,60352.0,0.001]
[1724115154275,3.81454688,60353.0,60352.0,0.083818]
[1724115154276,0.1767938,60353.0,60352.0,0.083818]
[1724115154571,0.13624692,60353.0,60352.0,0.083818]
[1724115154773,0.13624692,60353.0,60352.0,0.084818]
[1724115154981,0.13424692,60353.0,60352.0,0.083818]
[1724115155176,0.004,60353.0,60352.0,0.084818]
[1724115155365,0.04454688,60353.0,60352.0,0.084818]
[1724115155781,3.774,60353.0,60352.0,0.084818]
[1724115155971,3.86537157,60353.0,60352.0,0.084818]
[1724115156871,3.86537157,60353.0,60352.0,0.002]
[1724115157183,3.86537157,60353.0,60345.0,0.0002485]
[1724115157379,0.16531881,60350.0,60345.0,0.0002485]
[1724115157583,0.3608,60351.0,60345.0,0.0002485]
[1724115157584,0.20586569,60349.0,60345.0,0.0002485]
[1724115157784,0.04054688,60348.0,60345.0,0.0002485]
[1724115158084,0.04054688,60347.0,60345.0,0.0002485]
[1724115158283,0.3608,60351.0,60345.0,0.0002485]
[1724115158284,0.04054688,60346.0,60345.0,0.0830755]
[1724115158472,0.16531881,60350.0,60346.0,0.082826]
[1724115158782,0.3608,60351.0,60346.0,0.082826]
[1724115158783,0.002,60349.0,60346.0,0.082826]
[1724115159079,0.002,60349.0,60348.0,0.082823]
[1724115159990,0.01140913,60350.0,60349.0,0.082822]
[1724115160180,0.219,60352.0,60349.0,0.082822]
[1724115160386,0.3608,60351.0,60349.0,0.082822]
[1724115160877,0.23051262,60352.0,60350.0,0.082821]
[1724115161275,0.004,60350.0,60349.0,0.001]
[1724115161580,3.774,60350.0,60349.0,0.001]
[1724115162479,0.004,60350.0,60349.0,0.001]
[1724115162674,0.004,60350.0,60349.0,0.002]
[1724115162992,0.006,60350.0,60349.0,0.084822]
[1724115163173,0.006,60350.0,60349.0,0.083822]
[1724115163379,0.002,60350.0,60349.0,0.083822]
[1724115164181,0.005,60350.0,60349.0,0.084822]
[1724115164985,0.005,60350.0,60349.0,0.445622]
[1724115166184,0.003,60350.0,60349.0,0.04912391]
[1724115166391,0.005,60350.0,60349.0,0.002]
[1724115166585,0.005,60350.0,60349.0,0.001]
[1724115167284,0.3628,60350.0,60349.0,0.001]
[1724115167486,0.3658,60350.0,60349.0,0.001]
[1724115168095,0.3628,60350.0,60349.0,0.001]
[1724115168286,0.005,60350.0,60349.0,0.002]
[1724115168488,0.3658,60350.0,60349.0,0.002]
[1724115170292,0.005,60350.0,60349.0,0.002]
[1724115170692,0.003,60350.0,60349.0,0.001]
[1724115170886,0.005,60350.0,60349.0,0.002]
[1724115171282,0.003,60350.0,60349.0,0.001]
[1724115171488,0.003,60350.0,60349.0,0.002]
[1724115171489,0.005,60350.0,60349.0,0.002]
[1724115171692,0.005,60350.0,60349.0,0.084822]
[1724115172493,0.005,60350.0,60349.0,0.72234591]
[1724115172494,0.003,60350.0,60349.0,0.72234591]
[1724115172801,0.0002485,60358.0,60357.0,0.082811]
[1724115173389,0.01183364,60358.0,60357.0,0.082811]
[1724115174397,0.01483364,60358.0,60357.0,0.083811]
[1724115174897,0.01683364,60358.0,60357.0,0.084811]
[1724115181498,0.01483364,60358.0,60357.0,0.083811]
[1724115181698,0.01683364,60358.0,60357.0,0.084811]
[1724115181896,0.01383364,60358.0,60357.0,0.083811]
[1724115182096,0.0002485,60358.0,60357.0,0.083811]
[1724115182291,0.0022485,60358.0,60357.0,0.084811]
[1724115182698,0.0022485,60358.0,60357.0,0.083811]
[1724115182893,0.0022485,60358.0,60357.0,0.084811]
[1724115183501,0.0022485,60358.0,60357.0,0.083811]
[1724115183701,0.0022485,60358.0,60357.0,0.084811]
[1724115185206,0.0002485,60358.0,60357.0,0.083811]
[1724115185410,0.0022485,60358.0,60357.0,0.084811]
[1724115185606,0.0022485,60358.0,60357.0,0.083811]
[1724115185800,0.0022485,60358.0,60357.0,0.084811]
[1724115186910,0.0002485,60358.0,60357.0,0.083811]
[1724115187110,0.0022485,60358.0,60357.0,0.084811]
[1724115187612,0.0002485,60358.0,60357.0,0.084811]
[1724115187821,0.0022485,60358.0,60357.0,0.084811]
[1724115188515,0.0022485,60358.0,60357.0,0.083811]
[1724115188710,0.0022485,60358.0,60357.0,0.084811]
[1724115191212,0.0002485,60358.0,60357.0,0.083811]
[1724115191512,0.0022485,60358.0,60357.0,0.084811]
[1724115192508,0.0002485,60358.0,60357.0,0.083811]
[1724115192707,0.0002485,60358.0,60357.0,0.084811]
[1724115192708,0.0022485,60358.0,60357.0,0.084811]
[1724115194818,0.0002485,60358.0,60357.0,0.083811]
[1724115195016,0.0022485,60358.0,60357.0,0.084811]
[1724115195222,0.0022485,60358.0,60357.0,0.002]
[1724115195414,0.0022485,60358.0,60357.0,0.001]
[1724115195415,0.2286485,60358.0,60357.0,0.001]
[1724115195615,0.2286485,60358.0,60357.0,0.002]
[1724115196315,0.2286485,60358.0,60357.0,0.001]
[1724115196621,0.2286485,60358.0,60357.0,0.002]
[1724115196821,0.0022485,60358.0,60357.0,0.002]
[1724115197011,0.0022485,60358.0,60357.0,0.3628]
[1724115197911,0.0022485,60358.0,60357.0,0.002]
[1724115198323,0.0022485,60358.0,60357.0,0.084811]
[1724115199422,0.13450232,60358.0,60357.0,0.084811]
[1724115199727,0.15103405,60358.0,60357.0,0.084811]
[1724115201122,0.0022485,60358.0,60357.0,0.084811]
[1724115201421,0.0022485,60358.0,60357.0,0.314411]
[1724115204911,0.0022485,60358.0,60357.0,0.36246435]
[1724115205112,0.3608,60374.0,60357.0,0.27965335]
[1724115205315,0.3608,60374.0,60373.0,0.082789]
[1724115205617,0.3608,60374.0,60369.0,0.2296]
[1724115205618,0.3608,60374.0,60371.0,0.082792]
[1724115205825,0.3608,60374.0,60369.0,0.2296]
[1724115205826,0.37205995,60374.0,60370.0,0.2342]
[1724115206122,0.37205995,60374.0,60373.0,0.082789]
[1724115207823,0.37305995,60374.0,60373.0,0.083789]
[1724115208617,0.37305995,60374.0,60373.0,0.084789]
[1724115211616,0.46440555,60374.0,60373.0,0.084789]
[1724115213323,0.46440545,60374.0,60373.0,0.084789]
[1724115214523,0.23451138,60374.0,60373.0,0.084789]
[1724115214724,0.01225995,60374.0,60373.0,0.084789]
[1724115215028,0.04153617,60374.0,60373.0,0.084789]
[1724115215428,0.20672186,60374.0,60373.0,0.084789]
[1724115215635,0.04153617,60374.0,60373.0,0.084789]
[1724115215819,0.19011761,60374.0,60373.0,0.084789]
[1724115216226,0.001,60374.0,60373.0,0.084789]
[1724115216834,0.001,60374.0,60373.0,0.083789]
[1724115217128,0.001,60374.0,60373.0,0.5932034]
[1724115218037,0.14858289,60377.0,60376.0,0.082785]
[1724115218336,0.0002485,60378.0,60373.0,0.9094144]
[1724115218337,0.04622139,60381.0,60378.0,0.082782]
[1724115218530,0.04053617,60385.0,60380.0,0.3608]
[1724115218833,0.082752,60400.0,60384.0,0.2296]
[1724115219136,0.082752,60400.0,60390.0,0.2296]
[1724115219333,0.01114318,60394.0,60390.0,0.2296]
[1724115219525,0.0002478,60395.0,60393.0,0.082761]
[1724115220930,0.0002478,60395.0,60393.0,0.083761]
[1724115221332,0.0012478,60395.0,60393.0,0.084761]
[1724115223029,0.3608,60402.0,60401.0,0.082751]
[1724115223224,0.37199485,60402.0,60401.0,0.082751]
[1724115224338,0.37299485,60402.0,60401.0,0.084751]
[1724115224538,0.001,60402.0,60401.0,0.084751]
[1724115225625,0.231,60415.0,60401.0,0.084751]
[1724115225626,0.05933181,60406.0,60405.0,0.082745]
[1724115225831,0.21472783,60421.0,60414.0,0.082732]
[1724115226039,0.0998314,60420.0,60416.0,0.2296]
[1724115226237,0.04050534,60419.0,60417.0,0.082728]
[1724115226536,0.04050534,60418.0,60417.0,0.082728]
[1724115226736,0.36176001,60423.0,60420.0,0.082724]
[1724115226942,0.04050186,60422.0,60421.0,0.082722]
[1724115227234,0.09982191,60422.0,60421.0,0.312322]
[1724115227439,0.04050186,60422.0,60421.0,0.312322]
[1724115227836,0.3608,60436.0,60421.0,0.9904]
[1724115227837,0.18034262,60436.0,60421.0,0.9904]
[1724115228043,0.18034262,60436.0,60435.0,0.5904]
[1724115228226,0.16392116,60437.0,60436.0,0.082703]
[1724115228427,0.14735157,60438.0,60436.0,0.082703]
[1724115228636,0.14735157,60439.0,60436.0,0.082703]
[1724115228839,0.14735157,60439.0,60435.0,0.23108]
[1724115229144,0.18784285,60438.0,60435.0,0.2296]
[1724115229330,0.04049128,60437.0,60435.0,0.2296]
[1724115229529,0.3608,60442.0,60432.0,0.2137]
[1724115229530,0.18784285,60441.0,60432.0,0.2137]
[1724115229840,0.13087687,60435.0,60433.0,0.3608]
[1724115230137,0.14735157,60437.0,60433.0,0.3608]
[1724115230339,0.14735157,60436.0,60433.0,0.3608]
[1724115230540,0.14735157,60440.0,60433.0,0.3608]
[1724115230842,0.082694,60443.0,60433.0,0.3608]
[1724115230843,0.14735157,60439.0,60433.0,0.3608]
[1724115231042,0.3608,60441.0,60433.0,0.3608]
[1724115231043,0.14735157,60436.0,60433.0,0.3608]
[1724115231345,0.14735157,60438.0,60433.0,0.3608]
[1724115231535,0.13071739,60434.0,60433.0,0.3618]
[1724115231933,0.13071739,60434.0,60433.0,0.3628]
[1724115232138,0.18784285,60440.0,60433.0,0.002]
[1724115232339,0.14735157,60440.0,60433.0,0.002]
[1724115232542,0.3608,60436.0,60433.0,0.002]
[1724115233846,0.0111085,60440.0,60433.0,0.002]
[1724115234347,0.3608,60435.0,60424.0,0.00148]
[1724115234531,0.3608,60435.0,60419.0,0.3608]
[1724115234532,0.443517,60426.0,60419.0,0.00148]
[1724115234837,0.3608,60421.0,60413.0,0.2296]
[1724115235347,0.3608,60421.0,60417.0,0.082729]
[1724115237536,0.00024752,60423.0,60417.0,0.3608]
[1724115237740,0.00024752,60423.0,60421.0,0.082723]
[1724115238537,0.00024752,60423.0,60422.0,0.3608]
[1724115238741,0.11442413,60433.0,60422.0,0.3608]
[1724115239057,0.11442413,60433.0,60418.0,0.23108]
[1724115239058,0.002,60423.0,60418.0,0.23108]
[1724115239347,0.002,60423.0,60419.0,0.082726]
[1724115239539,0.002,60423.0,60421.0,0.082723]
[1724115240550,0.2231,60431.0,60423.0,0.082721]
[1724115240737,0.27160771,60430.0,60423.0,0.082721]
[1724115240939,0.27160771,60430.0,60418.0,0.2296]
[1724115240940,0.09126509,60429.0,60424.0,0.082719]
[1724115241141,0.09126509,60428.0,60418.0,0.2296]
[1724115241442,0.16358142,60422.0,60421.0,0.082723]
[1724115241647,0.20415312,60422.0,60421.0,0.443523]
[1724115241846,0.25491773,60422.0,60421.0,0.443523]
[1724115242049,0.082702,60437.0,60421.0,0.443523]
[1724115242050,0.05076266,60433.0,60432.0,0.082708]
[1724115242344,0.09124672,60433.0,60432.0,0.082708]
[1724115242744,0.04049233,60433.0,60432.0,0.579148]
[1724115242946,0.04049233,60433.0,60432.0,0.979148]
[1724115243148,0.01129639,60446.0,60442.0,0.082695]
[1724115243149,0.05074772,60443.0,60442.0,0.082695]
[1724115244444,0.05074476,60451.0,60449.0,0.082684]
[1724115244644,0.05074476,60450.0,60449.0,0.082684]
[1724115245246,0.05074476,60450.0,60442.0,0.2253]
[1724115245247,0.05074476,60450.0,60442.0,0.084694]
[1724115245453,0.05074476,60449.0,60442.0,0.084694]
[1724115245639,0.26834476,60448.0,60442.0,0.084694]
[1724115245843,0.41154476,60447.0,60442.0,0.002]
[1724115246054,0.05074476,60446.0,60442.0,0.002]
[1724115246245,0.7216,60443.0,60442.0,0.002]
[1724115246450,0.41154476,60443.0,60442.0,0.002]
[1724115246649,0.05074476,60443.0,60442.0,0.005]
[1724115247246,0.05074476,60443.0,60442.0,0.001]
[1724115247451,0.05075021,60443.0,60442.0,0.002]
[1724115247753,0.05075021,60443.0,60442.0,0.001]
[1724115248541,0.05075021,60443.0,60442.0,0.3638]
[1724115248848,0.2231,60447.0,60442.0,0.3638]
[1724115249157,0.2231,60447.0,60442.0,0.002]
[1724115249456,3.77,60446.0,60442.0,0.001]
[1724115249640,4.1308,60446.0,60442.0,0.001]
[1724115250247,4.21349,60446.0,60442.0,0.001]
[1724115250950,3.77,60446.0,60441.0,0.00024827]
[1724115252344,3.77,60446.0,60442.0,0.082693]
[1724115252946,0.59049575,60448.0,60442.0,0.082693]
[1724115253154,0.58965575,60448.0,60442.0,0.082693]
[1724115253465,0.58965575,60448.0,60441.0,0.00024827]
[1724115253654,0.08269,60446.0,60441.0,0.00024827]
[1724115254457,0.082693,60443.0,60441.0,0.00024827]
[1724115254756,0.252693,60443.0,60441.0,0.00024827]
[1724115254959,0.5922,60442.0,60441.0,0.00024827]
[1724115255160,0.7522,60442.0,60441.0,0.00024827]
[1724115255950,1.24856,60442.0,60441.0,0.00024827]
[1724115256564,0.9818,60442.0,60431.0,0.06416522]
[1724115256758,0.3608,60437.0,60432.0,0.04774877]
[1724115256956,0.082707,60433.0,60431.0,0.04774877]
[1724115257256,0.218,60432.0,60429.0,0.04774877]
[1724115257454,0.218,60432.0,60430.0,0.04774877]
[1724115257956,0.218,60432.0,60428.0,0.06416522]
[1724115258156,0.218,60432.0,60431.0,0.001]
[1724115258460,0.00024827,60437.0,60431.0,0.001]
[1724115258661,0.00024827,60437.0,60435.0,0.04773908]
[1724115258851,0.00024827,60437.0,60434.0,0.04773908]
[1724115259253,0.00024827,60437.0,60435.0,0.13044208]
[1724115259556,0.00024827,60437.0,60436.0,0.04773908]
[1724115259851,0.00024827,60437.0,60436.0,0.4542]
[1724115260059,0.00224827,60437.0,60436.0,0.4542]
[1724115260448,0.00224827,60437.0,60436.0,0.51783129]
[1724115260653,0.00224827,60437.0,60436.0,0.51783078]
[1724115260852,0.00224827,60437.0,60436.0,0.51783114]
[1724115261256,0.00024827,60437.0,60436.0,0.4622]
[1724115261659,0.00024827,60437.0,60436.0,0.4732]
[1724115261863,0.01140788,60447.0,60436.0,1.4332141]
[1724115262066,0.23168,60470.0,60446.0,0.3608]
[1724115262067,0.082673,60458.0,60446.0,0.3608]
[1724115262251,0.314173,60458.0,60448.0,0.0476942]
[1724115262453,0.082674,60457.0,60446.0,0.4084942]
[1724115262763,0.082674,60457.0,60440.0,0.3608]
[1724115262764,0.082691,60445.0,60442.0,0.0476942]
[1724115262958,0.2226,60444.0,60439.0,0.1303922]
[1724115263157,0.3608,60445.0,60439.0,0.0476942]
[1724115263553,0.3608,60445.0,60443.0,0.082692]
[1724115263759,0.11537013,60451.0,60439.0,0.2296]
[1724115263967,0.082678,60454.0,60439.0,0.2296]
[1724115263968,0.001,60445.0,60439.0,0.2296]
[1724115264759,0.001,60445.0,60444.0,0.082692]
[1724115265564,0.218,60450.0,60445.0,0.08269]
[1724115265863,0.218,60450.0,60439.0,0.5914]
[1724115265864,0.0112636,60451.0,60439.0,0.5914]
[1724115266069,0.11537013,60455.0,60444.0,0.3608]
[1724115266262,0.001,60445.0,60444.0,0.443492]
[1724115266767,0.11537013,60455.0,60444.0,0.3608]
[1724115267074,0.001,60450.0,60444.0,0.3608]
[1724115267363,0.11537013,60454.0,60450.0,0.082683]
[1724115268160,0.11537013,60455.0,60450.0,0.082683]
[1724115268370,0.11537013,60453.0,60450.0,0.082683]
[1724115268964,0.11537013,60452.0,60450.0,0.082683]
[1724115269465,0.082673,60458.0,60444.0,0.3628]
[1724115269466,0.11537013,60451.0,60444.0,0.445491]
[1724115269670,0.23379475,60459.0,60444.0,0.3628]
[1724115269671,0.11537013,60449.0,60444.0,0.3628]
[1724115270068,0.11537013,60449.0,60444.0,0.3608]
[1724115270369,0.11537013,60447.0,60444.0,0.3608]
[1724115270765,0.2226,60459.0,60444.0,0.3608]
[1724115270766,0.2145,60448.0,60444.0,0.4094942]
[1724115271073,0.2145,60448.0,60444.0,0.4134942]
[1724115271267,0.2145,60448.0,60446.0,0.082689]
[1724115272565,0.22586769,60448.0,60446.0,0.082689]
[1724115272759,0.22586769,60448.0,60444.0,0.005]
[1724115273166,0.3608,60445.0,60444.0,0.004]
[1724115273363,0.22686769,60448.0,60441.0,0.082696]
[1724115273572,0.22686769,60448.0,60446.0,0.002]
[1724115274072,0.22686769,60448.0,60446.0,0.084689]
[1724115274281,0.22686769,60448.0,60446.0,0.082689]
[1724115274282,0.3608,60447.0,60446.0,0.082689]
[1724115274465,0.22686769,60448.0,60446.0,0.082689]
[1724115275082,0.22686769,60448.0,60444.0,0.002]
[1724115275466,0.22586769,60448.0,60446.0,0.082688]
[1724115275961,0.73666769,60448.0,60446.0,0.082688]
[1724115276160,0.73766769,60448.0,60446.0,0.082688]
[1724115276765,0.37686769,60448.0,60446.0,0.082688]
[1724115277474,0.73766769,60448.0,60441.0,0.082696]
[1724115277668,0.82035469,60448.0,60441.0,0.082696]
[1724115277874,0.82035469,60448.0,60438.0,0.3608]
[1724115277875,0.73766769,60448.0,60438.0,0.3608]
[1724115278170,0.082699,60439.0,60437.0,0.00024827]
[1724115278380,0.2151,60438.0,60437.0,0.00024827]
[1724115278573,0.3651,60438.0,60437.0,0.00024827]
[1724115278769,0.8615,60438.0,60437.0,0.00024827]
[1724115278978,0.3651,60438.0,60437.0,0.00024827]
[1724115279364,0.3651,60438.0,60437.0,0.00124827]
[1724115279670,0.3608,60443.0,60437.0,0.00124827]
[1724115279866,0.00084,60447.0,60445.0,0.08269]
[1724115280068,0.2151,60453.0,60445.0,0.08269]
[1724115280478,0.22544064,60448.0,60445.0,0.08269]
[1724115281570,0.22544064,60448.0,60439.0,0.2296]
[1724115281774,0.22544064,60448.0,60445.0,0.082689]
[1724115281775,0.2145,60448.0,60445.0,0.082689]
[1724115282177,0.2155,60448.0,60445.0,0.082689]
[1724115282682,0.01109965,60449.0,60444.0,0.3608]
[1724115282880,0.2151,60453.0,60444.0,0.3608]
[1724115283181,0.3763965,60453.0,60444.0,0.3608]
[1724115283483,0.001,60448.0,60444.0,0.3608]
[1724115283670,0.001,60448.0,60447.0,0.082687]
[1724115284871,0.3608,60450.0,60447.0,0.083687]
[1724115285280,0.0122965,60453.0,60447.0,0.083687]
[1724115285476,0.0122965,60453.0,60449.0,0.3608]
[1724115285680,0.0122965,60453.0,60447.0,0.083687]
[1724115285681,0.001,60448.0,60447.0,0.083687]
[1724115286280,0.001,60450.0,60447.0,0.083687]
[1724115286481,0.001,60450.0,60447.0,0.082687]
[1724115286880,0.001,60448.0,60447.0,0.082687]
[1724115288692,0.11537013,60449.0,60447.0,0.082687]
[1724115288891,0.11637013,60450.0,60447.0,0.082687]
[1724115289196,0.11537013,60449.0,60448.0,0.082686]
[1724115289487,0.23610098,60454.0,60442.0,0.3608]
[1724115289488,0.001,60448.0,60442.0,0.3608]
[1724115289694,0.11558903,60447.0,60442.0,0.3608]
[1724115289881,0.11658903,60448.0,60442.0,0.3608]
[1724115290077,0.11558903,60448.0,60442.0,0.3608]
[1724115290689,0.11559001,60447.0,60442.0,0.3608]
[1724115291302,0.11559001,60447.0,60442.0,0.37797088]
[1724115291503,0.001,60450.0,60442.0,0.37797088]
[1724115291504,0.11559001,60449.0,60442.0,0.37797088]
[1724115291692,0.11559001,60449.0,60442.0,0.38097088]
[1724115292000,0.11559001,60450.0,60449.0,0.082685]
[1724115292795,0.23610098,60454.0,60452.0,0.082681]
[1724115294095,0.23610098,60454.0,60450.0,0.4562]
[1724115294096,0.23610098,60454.0,60453.0,0.08268]
[1724115294991,0.01140098,60454.0,60453.0,0.08268]
[1724115295187,0.001,60454.0,60453.0,0.08268]
[1724115295597,0.3608,60457.0,60456.0,0.082675]
[1724115296294,0.37216035,60457.0,60456.0,0.082675]
[1724115296898,0.235,60463.0,60462.0,0.082667]
[1724115297098,0.405,60463.0,60462.0,0.082667]
[1724115297599,0.235,60463.0,60462.0,0.082667]